Cogmind - Beta 9.3 @@@ ROGUE MODE // 2019.12.18 @ 11:29:59 // Winter2019/RPGLIKE Player: Nicolas Result: Destroyed by G-47 Trooper with Particle Gun Performance ------------- Evolutions (2) 1000 Regions Visited (3) 600 Robots Destroyed (17) 85 Value Destroyed (492) 492 Prototype IDs (2) 40 Alien Tech Used (0) 0 Bonus (0) 0 TOTAL SCORE: 2217 Bonus ------- None Cogmind --------- Core Integrity 0/750 Matter 250/300 Energy 488/565 System Corruption 0% Temperature Cool (227) Movement Walking (130) Location -8/Materials Parts ------- > --- POWER (3) -------- Ion Engine Ion Engine Improved Ion Engine > --- PROPULSION (3) --- Titanium Leg Titanium Leg Titanium Leg > --- UTILITY (2) ------ Improved Heat Sink Improved Terrain Scanner > --- WEAPON (2) ------- Beam Cannon Light Cannon > --- INVENTORY (3) ---- EM Pulse Gun Small Laser Peak State ------------ > --- POWER ------------ Ion Engine Ion Engine Improved Ion Engine > --- PROPULSION ------- Titanium Leg Titanium Leg Titanium Leg > --- UTILITY ---------- Improved Heat Sink Improved Terrain Scanner > --- WEAPON ----------- EM Pulse Gun Beam Cannon > --- INVENTORY -------- Small Laser [Rating: 20] Favorites ----------- Power Ion Engine Engine Ion Engine Propulsion Titanium Leg Leg Titanium Leg Utility Improved Terrain Scanner Device Improved Terrain Scanner Weapon Beam Cannon Energy Gun EM Pulse Gun Energy Cannon Beam Cannon Ballistic Cannon Light Cannon Build | -11 -10 -9 -8 ------- Run | Scr Mat Mat Mat Slots Evolved 6 | 4 . 2 . Power 2 | 1 . 1 . Propulsion 2 | 1 . 1 . Utility 1 | 1 . . . Weapon 1 | 1 . . . Parts Attached 17 | 6 2 7 2 Power 5 | 2 . 2 1 Engine 5 | 2 . 2 1 Core . | . . . . Reactor . | . . . . Propulsion 5 | 2 . 3 . Treads . | . . . . Leg 5 | 2 . 3 . Wheel . | . . . . Hover . | . . . . Flight . | . . . . Utility 3 | . 2 1 . Device 3 | . 2 1 . Storage . | . . . . Processor . | . . . . Hackware . | . . . . Protection . | . . . . Artifact . | . . . . Weapon 4 | 2 . 1 1 Energy Gun 2 | 2 . . . Energy Cannon 1 | . . 1 . Ballistic Gun . | . . . . Ballistic Cannon 1 | . . . 1 Launcher . | . . . . Special Weapon . | . . . . Impact Weapon . | . . . . Slashing Weapon . | . . . . Piercing Weapon . | . . . . Special Melee Weapon . | . . . . Unidentified Prototypes . | . . . . Parts Lost . | . . . . Power . | . . . . Propulsion . | . . . . Utility . | . . . . Weapon . | . . . . Highest Loss Streak . | . . . . Average Slot Usage (%) 93 | . 84 91 99 Engine 26 | . 25 23 29 Leg 28 | . 25 27 30 Device 17 | . 9 20 20 Energy Gun 9 | . 25 11 . Energy Cannon 7 | . . 8 10 Ballistic Cannon 4 | . . . 9 Naked Turns . | . . . . Heaviest Build 25 | 13 15 24 25 Greatest Support 56 | 20 20 51 56 Greatest Overweight (x) . | . . . . Average Overweight (x) . | . . . . Largest Inventory Capacity 3 | 1 1 1 3 Average Capacity 1 | . 1 1 2 Most Carried 2 | 1 1 1 2 Average Carried 1 | . 1 1 1 Final Capacity 3 | 1 1 1 3 Final Carried 2 | 1 1 1 2 Class Distribution -------------------- 100% | Mutant Dominant Class ---------------- Mutant | -10/Materials Mutant | -9/Materials Mutant | -8/Materials Resources | -11 -10 -9 -8 ----------- Run | Scr Mat Mat Mat Matter Collected 388 | 238 42 70 38 Remotely . | . . . . Salvage Created 621 | . 112 413 96 Parts 46 | . 10 28 8 Haulers Intercepted . | . . . . Recyclers Shooed . | . . . . Parts Field Recycled . | . . . . Retrieved Matter . | . . . . Parts Self-Destructed . | . . . . Prevented . | . . . . Kills | -11 -10 -9 -8 ------- Run | Scr Mat Mat Mat Combat Hostiles Destroyed 15 | . 4 6 5 Guns 7 | . 4 3 . Cannons 8 | . . 3 5 Classes Destroyed 5 | . 1 2 2 Builder 1 | . . 1 . Watcher 1 | . . . 1 Swarmer 4 | . . . 4 Grunt 9 | . 4 5 . Sentry 2 | . . 1 1 Best Kill Streak 4 | . 4 3 2 Combat Bots Only 4 | . 4 3 2 Max Kills in Single Turn 2 | . 1 1 2 Gunslinging . | . . . . Exploded . | . . . . Melee . | . . . . Uniques/NPCs Destroyed . | . . . . Combat | -11 -10 -9 -8 -------- Run | Scr Mat Mat Mat Damage Taken 944 | . 89 302 553 Core 753 | . 70 243 440 Absorbed by Shields . | . . . . Redirected to Core 655 | . 60 207 388 Core Remaining (%) 80 | 100 89 51 . Volleys Fired 48 | . 7 24 17 Largest 2 | . 2 2 2 Hottest 100 | . 80 100 95 Shots Fired 94 | . 13 47 34 Gun 37 | . 13 24 . Cannon 57 | . . 23 34 Launcher . | . . . . Special . | . . . . Kinetic 17 | . . . 17 Thermal 46 | . 6 23 17 Explosive . | . . . . Electromagnetic 31 | . 7 24 . Robot Hit Streak 10 | . 3 6 10 Robot Miss Streak 5 | . 1 5 5 Penetration Max . | . . . . Secondary Targets 1 | . 1 . . Max Gunslinging Chain 1 | . 1 . . Shots Hit Robots 51 | . 8 26 17 Core Hits 26 | . 7 11 8 Critical Hits . | . . . . Critical Kills . | . . . . Critical Parts Destroyed . | . . . . Melee Attacks . | . . . . Impact . | . . . . Slashing . | . . . . Piercing . | . . . . Sneak Attacks . | . . . . Combat Hostiles . | . . . . Follow-up Attacks . | . . . . Damage Inflicted 744 | . 102 307 335 Guns 252 | . 102 150 . Cannons 492 | . . 157 335 Explosions . | . . . . Melee . | . . . . Ramming . | . . . . Kinetic 176 | . . . 176 Thermal 327 | . 11 157 159 Explosive . | . . . . Electromagnetic 241 | . 91 150 . Impact . | . . . . Slashing . | . . . . Piercing . | . . . . Highest Corruption . | . . . . Average Corruption . | . . . . Corruption Purged . | . . . . Overload Shots . | . . . . Overflow Damage . | . . . . Projectiles . | . . . . Explosions . | . . . . Melee . | . . . . Knockbacks 4 | . . . 4 Impact . | . . . . Kinetic 3 | . . . 3 Secondary 1 | . . . 1 Self-Inflicted Damage . | . . . . Shots . | . . . . Rammed . | . . . . Targets Rammed . | . . . . Kicked . | . . . . Crushed . | . . . . Highest Temperature 256 | . 256 234 209 Average Temperature 90 | . 127 82 81 Received Heat Transfer 321 | . 48 138 135 Effects 4 | . . 3 1 Energy Bleed 1 | . . . 1 Interference 3 | . . 3 . Siege Activations . | . . . . Robots Corrupted . | . . . . Combat Hostiles . | . . . . Parts Fried 1 | . . 1 . Impact Corruptions . | . . . . Robots Melted . | . . . . Combat Hostiles . | . . . . Parts Melted 1 | . . . 1 Heat Transferred 691 | . 25 333 333 Parts Sabotaged . | . . . . Parts Stolen . | . . . . Parts Stripped . | . . . . Power Chain Reactions . | . . . . Missiles Intercepted . | . . . . Alert | -11 -10 -9 -8 ------- Run | Scr Mat Mat Mat Peak Influence 225 | . 119 225 149 Average Influence 84 | . 19 118 112 Maximum Alert Level 1 | . . 1 . Low Security (%) 96 | 100 100 88 100 Level 1 3 | . . 11 . Level 2 . | . . . . Level 3 . | . . . . Level 4 . | . . . . Level 5 . | . . . . High Security . | . . . . Max Security . | . . . . Squads Dispatched 3 | . 2 1 . Investigation 1 | . 1 . . Extermination . | . . . . Reinforcement 2 | . 1 1 . Assault . | . . . . Garrison . | . . . . Intercept . | . . . . Construction Impeded . | . . . . Haulers Reinforced . | . . . . Stealth | -11 -10 -9 -8 --------- Run | Scr Mat Mat Mat Distress Signals 2 | . . . 2 Communications Jammed . | . . . . Distress Signals . | . . . . Times Spotted 26 | . 7 8 11 Peak Tracking Total 7 | . 5 3 7 Tactical Retreats 2 | . . 1 1 Traps | -11 -10 -9 -8 ------- Run | Scr Mat Mat Mat Traps Triggered . | . . . . Indirectly . | . . . . Trap Hack Attempts . | . . . . Triggered . | . . . . Disarmed . | . . . . Reprogrammed . | . . . . Reused . | . . . . Traps Extracted . | . . . . Installed . | . . . . Triggered 1 | . 1 . . Machines | -11 -10 -9 -8 ---------- Run | Scr Mat Mat Mat Machines Disabled . | . . . . Max in Single Turn . | . . . . Machines Sabotaged . | . . . . Garrisons Compromised . | . . . . Overloaded Fab Kills . | . . . . Fab Network Shutdowns . | . . . . Hacking | -11 -10 -9 -8 --------- Run | Scr Mat Mat Mat Machines Accessed 5 | . 2 1 2 Terminals 4 | . 2 1 1 Fabricators . | . . . . Repair Stations 1 | . . . 1 Recycling Units . | . . . . Scanalyzers . | . . . . Garrison Access . | . . . . Total Hacks 6 | . 2 1 3 Successful 6 | . 2 1 3 Failed . | . . . . Catastrophic . | . . . . Database Lockouts . | . . . . Manual . | . . . . Terminals 4 | . 2 1 1 Fabricators . | . . . . Repair Stations 2 | . . . 2 Recycling Units . | . . . . Scanalyzers . | . . . . Garrison Access . | . . . . Terminal Hacks 4 | . 2 1 1 Record 1 | . 1 . . Prototype ID Bank 1 | . . 1 . Locate Traps 1 | . 1 . . Maintenance Status 1 | . . . 1 Fabricator Hacks . | . . . . Repair Station Hacks 2 | . . . 2 Scan Component 1 | . . . 1 Repair 1 | . . . 1 Recycling Unit Hacks . | . . . . Scanalyzer . | . . . . Garrison Access Hacks . | . . . . Unauthorized Hacks . | . . . . Terminals . | . . . . Fabricators . | . . . . Repair Stations . | . . . . Recycling Units . | . . . . Scanalyzers . | . . . . Garrison Access . | . . . . Data Cores Recovered . | . . . . Used . | . . . . Hacking Detections . | . . . . Full Trace Events . | . . . . Feedback Events . | . . . . Feedback Blocked . | . . . . Robot Schematics Acquired . | . . . . Robots Built . | . . . . Matter . | . . . . Time . | . . . . Total Robot Build Rating . | . . . . Part Schematics Acquired . | . . . . Parts Built . | . . . . Matter . | . . . . Time . | . . . . Total Part Build Rating . | . . . . Parts Repaired 1 | . . . 1 Time 26 | . . . 26 Parts Recycled . | . . . . Recycled Matter . | . . . . Retrieved Matter . | . . . . Retrieved Components . | . . . . Parts Scanalyzed . | . . . . Part Schematics Acquired . | . . . . Parts Damaged . | . . . . Bothacking | -11 -10 -9 -8 ------------ Run | Scr Mat Mat Mat Used RIF Installer . | . . . . Robots Hacked . | . . . . Non-combat . | . . . . Combat . | . . . . Robot Hacks Applied . | . . . . Relay Couplers Released . | . . . . Robots Rewired . | . . . . Allies Hacked . | . . . . Hacks Repelled . | . . . . Allies | -11 -10 -9 -8 -------- Run | Scr Mat Mat Mat Total Allies . | . . . . Largest Group . | . . . . Highest-Rated Group . | . . . . Highest-Rated Ally . | . . . . Total Orders . | . . . . Ally Attacks . | . . . . Total Damage . | . . . . Kills . | . . . . Allies Corrupted . | . . . . Allies Melted . | . . . . Intel | -11 -10 -9 -8 ------- Run | Scr Mat Mat Mat Robot Analysis Total . | . . . . Derelict Logs Recovered . | . . . . Drone Launches . | . . . . Drone Recoveries . | . . . . Exploration | -11 -10 -9 -8 ------------- Run | Scr Mat Mat Mat Turns Passed 1141 | 92 250 330 469 Spaces Moved 683 | 69 175 186 253 Core 2 | 2 . . . Treads . | . . . . Legs 681 | 67 175 186 253 Wheels . | . . . . Hover . | . . . . Flight . | . . . . Fastest Speed 50 | 50 120 120 130 Average Speed 125 | 117 120 126 130 Slowest Speed 130 | 120 120 130 130 Overloaded Moves . | . . . . Propulsion Burnouts . | . . . . Robots Hopped . | . . . . Cave-ins Triggered . | . . . . Exploration Rate (%) 16 | 4 27 13 22 Regions Visited 3 Branch Regions . Pre-discovered Areas . | . . . . Known Exits Taken . | . . . . Unknown Exits Taken 3 | 1 1 1 . Scrap Searched . | . . . . Spaces Dug . | . . . . Terrain Destroyed . | . . . . Melee . | . . . . Projectile . | . . . . AOE . | . . . . Actions | -11 -10 -9 -8 --------- Run | Scr Mat Mat Mat Total 869 | 76 201 233 359 Wait 116 | 1 18 11 86 Move 680 | 68 174 185 253 Hop . | . . . . Pick Up 3 | 1 . 1 1 Fast Attach 12 | 6 2 3 1 Attach . | . . . . Detach . | . . . . Swap 5 | . . 4 1 Drop 5 | . . 5 . Fire 48 | . 7 24 17 Melee . | . . . . Ram . | . . . . Kick . | . . . . Crush . | . . . . Escape Stasis . | . . . . Rewire . | . . . . Trap . | . . . . Miscellaneous . | . . . . Route ------- -11/Scrapyard -10/Materials -9/Materials -8/Materials History --------- Turn | Location | Event 2 | -11/Scrapyard | Met Revision 17 20 | -11/Scrapyard | Discovered new exit (range 15) 43 | -11/Scrapyard | Upgraded with Power slot (x1) 43 | -11/Scrapyard | Upgraded with Propulsion slot (x1) 43 | -11/Scrapyard | Upgraded with Utility slot (x1) 43 | -11/Scrapyard | Upgraded with Weapon slot (x1) 93 | -11/Scrapyard | Entered Materials 281 | -10/Materials | Discovered new exit (range 17) 304 | -10/Materials | Build established: Mutant 343 | -10/Materials | Entered another Materials area 345 | -9/Materials | Reached level 2 346 | -9/Materials | Upgraded with Power slot (x1) 346 | -9/Materials | Upgraded with Propulsion slot (x1) 649 | -9/Materials | Discovered new exit (range 17) 673 | -9/Materials | Entered another Materials area 675 | -8/Materials | Reached level 3 1066 | -8/Materials | Repaired Ion Engine 1106 | -8/Materials | Reached level 4 1109 | -8/Materials | Core integrity fell below 50% 1130 | -8/Materials | Core integrity fell below 20% 1142 | -8/Materials | Destroyed by G-47 Trooper with Particle Gun Last Messages --------------- >>Repair Repairing Ion Engine... ETC: 26 01056_ K-01 Serf cleans the Repair Station. 01066_ Repair station completes Ion Engine repairs. 01067_ Acquired Ion Engine. 01067_ K-01 Serf cleans the Repair Station. 01086_ K-01 Serf cleans the Electrolysis Chamber. 01093_ W-25 Informer sends out distress signal. 01106_ Reached level 4. 01106_ S-10 Pest destroyed. 01109_ K-01 Serf collects debris. 01112_ S-10 Pest knocked back. 01116_ K-01 Serf collects debris. 01118_ S-10 Pest destroyed. 01120_ K-01 Serf collects debris. 01137_ S-10 Pest knocked back. 01140_ Flight Unit melted. 01140_ S-10 Pest destroyed. 01141_ Overheating: Energy bleed (-101). Map ----- +----------------------------------------------------+ | | | | | | | | | | | | | | | | | ?????????????????????????????????????????????????? | | ?????????????????????????????????????????????????? | | ???????????????????????????#?????????????????????? | | ????????????????????##??#????????????????????????? | | ???????????????? ??#???#?#???????????????????????? | | ???????????????????????#?#???????????????????????? | | ?????????????? ? ????##?#?#?##???????????????????? | | ?????????????? ????##??#???????????#?#???????????? | | ?????????? ???? ?#?####??##????????????????????? | | ?????????? ?????#?##?#####?????#??????????????? | | ?????????#?##??##########??#??#?#?##???"?????????? | | ????????? ? ? ? #?#########?#??? ?????????? | | ??????? ? ???? ? #########?#?#?? ??????????? | | ??????? ?? ? ###########?#? ???????????? | | ???????#?###??##?#?# # #?###?# ? ?????????? | | ????????#?? ? ? #### # #####?#? ? ???????? | | ?????????? ?? ? ?### [#g #?#?###? ""??????? | | ??????#??? ? ???#?## %+%@ ##?###?? ???????? | | ??????#### ??? ?#### #g ###??#? ??""??????? | | ???????????? #?## # ###???# ???????? | | ???????#????????#### #########?##?# ? ? ? ?????? | | ??????##?#????##?### ##############?###??? ????? | | ????????? ? ??#### # # ?#??? ?????? | | ???????? ? ##### # """ """ #? ?### ?????? | | ?????? "?"??"" #?#?# + "R """ #???###??????? | | ???????"?? ??? ?#### # """ """ # ?#??# ?????? | | ????????"??"""?#??## # # ?#?#???????? | | ??????????? ? ##?## % ########+#####?##?##??????? | | ??????#????#?##?### %== ##?#### ####???##?#??????? | | ?????????? ?? ####%% #?### #?? ?????? | | ??????? T ###% #??##?# ???????? | | ?????? ###% ##### #??"?"?????? | | ?????? ########### #?#% +? ?""?????? | | ????????????#?###########?#% ##? "?"?????? | | ???????????#??#?############%% #???? ??????? | | ?????????????#?####??##########+## ####??#?????? | | ???????????????? ####! ! ## #?#???##????? | | ???????????????? ? ??#?# #? ###???##????? | | ??????????? ?? ?? ??#?## " ## ###?#???????? | | ?????????????? ?###?+##?## T #?? #?#? ??????? | | ???????????? ??#??? ? # " #? ### "?"?? ??? | | ????????????????????""?? # ! ## ### ""??????? | +----------------------------------------------------+ Best States ------------- Heat Dissipation 39 Energy Generation 27 Energy Capacity 565 Matter Stores 300 Matter Capacity 300 Sight Range 17 Terrain Scan Range 16 Terrain Scan Density 110 Evasion (%) 40 Item Schematics ----------------- None Robot Schematics ------------------ None Fabricated ------------ Nothing Alien Tech Used ----------------- None Achievements -------------- Omniscient Cartographer Challenges ------------ None RPGLIKE | -11 -10 -9 -8 --------- Run | Scr Mat Mat Mat Levels Raised 3 | . . 1 2 XP Earned 7885 | 3000 500 2250 2135 XP Spent 5955 | 2875 . 1600 1480 Upgrades 17 | 9 . 2 6 Power Slot 2 | 1 . 1 . Propulsion Slot 2 | 1 . 1 . Utility Slot 1 | 1 . . . Weapon Slot 1 | 1 . . . Core Integrity 3 | 1 . . 2 Energy Generation 1 | 1 . . . Mass Support 1 | . . . 1 Inventory Capacity 3 | 1 . . 2 Sight Range 1 | 1 . . . Terrain Scan Density 1 | . . . 1 EX Damage % 1 | 1 . . . Protomatter Created 93 | . 75 . 18 Protomatter Decayed . | . . . . Game ------ Seed ContainmentImpulseScythe Manual? 0 Play Time 00:16:02 Cumulative 2.1 hours Start 2019.12.18 @ 11:13:29 End 2019.12.18 @ 11:29:59 Sessions 1 Manual Loads 0 Difficulty Rogue Special Mode Winter2019/RPGLIKE Game No. 8 Rogue 8 Adventurer 0 Explorer 0 Win Type - Total 0 Types 0/0/0/0/0/0/0 Lore% 2 Gallery% 4 Achievement% 5 Wizard Run 0 Options --------- ASCII 0 Keyboard 0 Movement Numpad Keybinds 0 Fullscreen 1 Font 16/SmallcapsGlow Map View 75x55 Tactical HUD 1 Map Filters NONE Filters NONE Steam 1 RUN: bac6c269-5000-49bc-8aab-01c880877ccc